Workbook

Sheet Лист1
A1: Меню обедов для обучающихся 1-4-х классов, в том числе для детей с ограниченными возможностями здоровья, детей в группе продленного дня, детей участников специальной военной операции
C2: (вариант 1 на сумму 105,00 рублей)
A3: Основание
A4: 1. Санитарно-эпидемиологические правила и нормы СанПиН 2.3/2.4.3590-20. Утверждены постановлением Главного государственного санитарного врача Российской Федерации от 27 октября 2020г. №32
A5: 2. Сборник рецептур на продукцию для обучающихся во всех образовательных учреждениях. Под ред. М.П.Могильного и В.А.Тутельяна. - М.:ДеЛи плюс, 2015 года.
B6: первый
A7: Неделя: | B7: первая
A8: № рец. | B8: Приём пищи, наименование блюда | C8: Масса порции | D8: Пищевые вещества (г.) | G8: Энергетическая ценность (ккал) | H8: Витамины (мг.) | L8: Минеральные вещества (мг.)
D9: Б | E9: Ж | F9: У | H9: В1 | I9: С | J9: А | K9: Е | L9: Са | M9: Р | N9: Мg | O9: Fe
A10: 42дет. | B10: Салат из моркови с раст. маслом | C10: 60 | D10: 0.70 | E10: 0.06 | F10: 6.90 | G10: 49.02 | H10: 0.03 | I10: 2.01 | J10: - | K10: 4.34 | L10: 15.50 | M10: 31.70 | N10: 21.60 | O10: 0.40
A11: 102 | B11: Суп с бобовыми (горох) на мясном бульоне | C11: 200 | D11: 5.49 | E11: 5.27 | F11: 16.54 | G11: 148.29 | H11: 0,19 | I11: 0,64 | J11: - | K11: 14,24 | L11: 33,9 | M11: 61,1 | N11: 23,7 | O11: 1,7
A12: 265 | B12: Плов из мяса свинины | C12: 240 | D12: 20.18 | E12: 45.05 | F12: 41.34 | G12: 652.80 | H12: 0.6 | I12: 1.96 | K12: 0.40 | L12: 19.85 | M12: 279.38 | N12: 63.38 | O12: 2.94
A13: 349 | B13: Компот из сухофруктов | C13: 180 | D13: 1.0 | E13: 0.3 | F13: 42.5 | G13: 132.1 | H13: 0.0 | I13: 0.7 | K13: 0.2 | L13: 5.3 | M13: 41.4 | N13: 29.7 | O13: 0.8
A14: б/н | B14: Хлеб пшеничный | C14: 20 | D14: 1.58 | E14: 0.2 | F14: 9.66 | G14: 46.76 | H14: 0.02 | K14: 0.26 | L14: 4.6 | M14: 17.4 | N14: 6.6 | O14: 0.22
A15: б/н | B15: Хлеб ржаной | C15: 20 | D15: 0.9 | E15: 0.3 | F15: 5.2 | G15: 28 | H15: 0.01 | K15: 0.24 | L15: 6.1 | M15: 28.3 | N15: 6.6 | O15: 0.8
B16: Соль иодированная | C16: 1
A17: ИТОГО | C17: =SUM(C10:C15) -> 720 | D17: =SUM(D10:D15) -> 29.89 | E17: 51.18 | F17: 122.14 | G17: 1056.99 | H17: 0.68 | I17: 4.67 | J17: 0 | K17: 5.42 | L17: 51.35 | M17: 398.18 | N17: 127.88 | O17: 5.16
A19: День: | B19: второй
A20: Неделя: | B20: первая
A21: № рец. | B21: Приём пищи, наименование блюда | C21: Масса порции | D21: Пищевые вещества (г.) | G21: Энергетическая ценность (ккал) | H21: Витамины (мг.) | L21: Минеральные вещества (мг.)
D22: Б | E22: Ж | F22: У | H22: В1 | I22: С | J22: А | K22: Е | L22: Са | M22: Р | N22: Мg | O22: Fe
A23: 52 | B23: Салат из свеклы с растительным маслом | C23: 60 | D23: 0.8 | E23: 3 | F23: 4.8 | G23: 50.1 | H23: 0.01 | I23: 2.4 | J23: 0.6 | K23: - | L23: 19.5 | M23: 22.5 | N23: 11.5 | O23: 0.7
A24: 88 | B24: Щи из свежей капусты на курином бульоне | C24: 200 | D24: 2.1 | E24: 4.12 | F24: 6.32 | G24: 99.8 | H24: 0.05 | I24: 12.6 | K24: 1.88 | L24: 41 | M24: 39.2 | N24: 17.7 | O24: 0.7
A25: 278.1 | B25: Тефтели из мяса птицы с соусом (50/40) | C25: 90 | D25: 14.1 | E25: 13.6 | F25: 13.2 | G25: 231.66 | H25: 0.15 | I25: 0.7 | J25: 27.2 | K25: 55.44 | L25: 48.4 | M25: 64.8 | N25: 17.9 | O25: 2.9
A26: 309 | B26: Макароны отварные | C26: 150 | D26: 5.52 | E26: 4.52 | F26: 26.45 | G26: 168.45 | H26: 0.06 | K26: 0.97 | L26: 4.86 | M26: 37.17 | N26: 21.12 | O26: 1.10
A27: 342 | B27: Компот из свежих яблок | C27: 180 | D27: 0.14 | E27: 0.14 | F27: 25.10 | G27: 103.14 | H27: 0.01 | I27: 0.80 | K27: 0.07 | L27: 15.30 | M27: 4.60 | N27: 6.40 | O27: 0.90
A28: б/н | B28: Хлеб пшеничный | C28: 20 | D28: 1.58 | E28: 0.2 | F28: 9.66 | G28: 46.76 | H28: 0.02 | K28: 0.26 | L28: 4.6 | M28: 17.4 | N28: 6.6 | O28: 0.22
A29: б/н | B29: Хлеб ржаной | C29: 20 | D29: 0.9 | E29: 0.3 | F29: 5.2 | G29: 28 | H29: 0.01 | K29: 0.24 | L29: 6.1 | M29: 28.3 | N29: 6.6 | O29: 0.8
B30: Соль иодированная | C30: 1
A31: ИТОГО | C31: =SUM(C23:C29) -> 720 | D31: =SUM(D23:D29) -> 25.14 | E31: 25.88 | F31: 90.73 | G31: 727.91 | H31: 0.31 | I31: 16.5 | J31: 27.8 | K31: 58.86 | L31: 139.76 | M31: 213.97 | N31: 87.82 | O31: 7.32
A33: День: | B33: третий
A34: Неделя: | B34: первая
A35: № рец. | B35: Приём пищи, наименование блюда | C35: Масса порции | D35: Пищевые вещества (г.) | G35: Энергетическая ценность (ккал) | H35: Витамины (мг.) | L35: Минеральные вещества (мг.)
D36: Б | E36: Ж | F36: У | H36: В1 | I36: С | J36: А | K36: Е | L36: Са | M36: Р | N36: Мg | O36: Fe
A37: 45/47 | B37: Салат из свежей капусты или квашеной | C37: 60 | D37: 0.07 | E37: 1.90 | F37: 3.90 | G37: 36.24 | H37: 0.01 | I37: 10.10 | K37: 9.24 | L37: 14.90 | M37: 16.90 | N37: 9.10 | O37: 0.30
A38: 112 | B38: Суп с макаронными изделиями и картофелем на кур. бульоне | C38: 200 | D38: 2.1 | E38: 2.2 | F38: 12.55 | G38: 87.2 | H38: 0.07 | I38: 4.86 | K38: 1.16 | L38: 23.6 | M38: 46.18 | N38: 19.4 | O38: 0.8
A39: 294 | B39: Котлета рубленная из мяса птицы с красным соусом № 331 (50/40) | C39: 90 | D39: 9.8 | E39: 10.7 | F39: 11.34 | G39: 179.8 | H39: 0.05 | I39: 0.9 | J39: 41.31 | L39: 40.95 | M39: 14.85 | N39: 60.21 | O39: 1.08
A40: 302 | B40: Каша рассыпчатая гречневая | C40: 150 | D40: 8.6 | E40: 6.09 | F40: 38.64 | G40: 243.8 | H40: 0.02 | K40: 0.61 | L40: 14.82 | M40: 203.93 | N40: 135.83 | O40: 4.56
A41: 349 | B41: Компот из сухофруктов | C41: 180 | D41: 1.04 | E41: 0.30 | F41: 42.50 | G41: 132.12 | H41: 0.02 | I41: 0.70 | K41: 0.18 | L41: 5.30 | M41: 41.40 | N41: 29.70 | O41: 0.80
A42: б/н | B42: Хлеб пшеничный | C42: 20 | D42: 1.58 | E42: 0.2 | F42: 9.66 | G42: 46.76 | H42: 0.02 | K42: 0.26 | L42: 4.6 | M42: 17.4 | N42: 6.6 | O42: 0.22
A43: б/н | B43: Хлеб ржаной | C43: 20 | D43: 0.9 | E43: 0.3 | F43: 5.2 | G43: 28 | H43: 0.01 | K43: 0.24 | L43: 6.1 | M43: 28.3 | N43: 6.6 | O43: 0.8
B44: соль иодированная | C44: 1
A45: ИТОГО | C45: =SUM(C37:C43) -> 720 | D45: =SUM(D37:D43) -> 24.09 | E45: 21.69 | F45: 123.79 | G45: 753.92 | H45: 0.2 | I45: 16.56 | J45: 41.31 | K45: 11.69 | L45: 110.27 | M45: 368.96 | N45: 267.44 | O45: 8.56
A47: День: | B47: четвертый
A48: Неделя: | B48: первая
A49: № рец. | B49: Приём пищи, наименование блюда | C49: Масса порции | D49: Пищевые вещества (г.) | G49: Энергетическая ценность (ккал) | H49: Витамины (мг.) | L49: Минеральные вещества (мг.)
D50: Б | E50: Ж | F50: У | H50: В1 | I50: С | J50: А | K50: Е | L50: Са | M50: Р | N50: Мg | O50: Fe
A51: 52 | B51: Салат из свеклы на растительном масле | C51: 60 | D51: 0.65 | E51: 3.60 | F51: 6.70 | G51: 62.34 | H51: 0.01 | I51: 3.90 | K51: 6.36 | L51: 17.60 | M51: 19.80 | N51: 10.10 | O51: 0.90
A52: 96 | B52: Рассольник по -Ленинградски на курином бульоне | C52: 200 | D52: 2.3 | E52: 4.2 | F52: 9.6 | G52: 113.8 | H52: 0.07 | I52: 6.7 | K52: 1.88 | L52: 24.92 | M52: 45.38 | N52: 19.34 | O52: 0.74
A53: 297 | B53: Фрикадельки из мяса птицы с соусом № 329 (50/40) | C53: 90 | D53: 8.7 | E53: 11.2 | F53: 8.7 | G53: 171.9 | H53: 0.3 | I53: 2 | J53: 39 | K53: 94.95 | L53: 63.5 | M53: 58.7 | N53: 55.8 | O53: 0.5
A54: 304 | B54: Рис отварной | C54: 150 | D54: 3.65 | E54: 5.37 | F54: 36.68 | G54: 209.7 | H54: 0,03 | K54: 0,28 | L54: 1,37 | M54: 60,95 | N54: 16,34 | O54: 0,53
A55: 342 | B55: Компот из свежих яблок | C55: 180 | D55: 0.14 | E55: 0.14 | F55: 25.10 | G55: 103.14 | H55: 0.01 | I55: 0.80 | K55: 0.07 | L55: 15.30 | M55: 4.60 | N55: 6.40 | O55: 0.90
A56: б/н | B56: Хлеб пшеничный | C56: 20 | D56: 1.58 | E56: 0.2 | F56: 9.66 | G56: 46.76 | H56: 0.02 | K56: 0.26 | L56: 4.6 | M56: 17.4 | N56: 6.6 | O56: 0.22
A57: б/н | B57: Хлеб ржаной | C57: 20 | D57: 0.9 | E57: 0.3 | F57: 5.2 | G57: 28 | H57: 0.01 | K57: 0.24 | L57: 6.1 | M57: 28.3 | N57: 6.6 | O57: 0.8
B58: Соль иодированная | C58: 1
A59: ИТОГО: | C59: =SUM(C51:C57) -> 720 | D59: =SUM(D51:D57) -> 17.92 | E59: 25.01 | F59: 101.64 | G59: 735.64 | H59: 0.422 | I59: 13.4 | J59: 39 | K59: 103.76 | L59: 132.02 | M59: 174.18 | N59: 104.84 | O59: 4.06
A60: День: | B60: пятый
A61: Неделя: | B61: первая
A62: № рец. | B62: Приём пищи, наименование блюда | C62: Масса порции | D62: Пищевые вещества (г.) | G62: Энергетическая ценность (ккал) | H62: Витамины (мг.) | L62: Минеральные вещества (мг.)
D63: Б | E63: Ж | F63: У | H63: В1 | I63: С | J63: А | K63: Е | L63: Са | M63: Р | N63: Мg | O63: Fe
A64: 42дет. | B64: Салат из моркови с раст. маслом | C64: 60 | D64: 0.70 | E64: 0.06 | F64: 6.90 | G64: 49.02 | H64: 0.03 | I64: 2.01 | J64: - | K64: 4.34 | L64: 15.50 | M64: 31.70 | N64: 21.60 | O64: 0.40
A65: 82 | B65: Борщ с картофелем и капустой на мясном бульоне | C65: 200 | D65: 2.08 | E65: 4.10 | F65: 8.70 | G65: 116.00 | H65: 0.04 | I65: 8.50 | K65: 1.92 | L65: 41.40 | M65: 43.68 | N65: 20.90 | O65: 0.98
A66: 234 | B66: Котлета или биточек рыбные | C66: 50 | D66: 6.6 | E66: 5.0 | F66: 8.5 | G66: 105.8 | H66: 0.1 | I66: 0.8 | J66: 16.8 | K66: 2.9 | L66: 51.3 | M66: 115.3 | N66: 39.7 | O66: 0.2
A67: 329 | B67: Соус красный | C67: 40 | D67: 1.4 | E67: 4.5 | F67: 5.0 | G67: 66.4 | H67: 0.0 | I67: 0.2 | J67: 0.2 | L67: 38.2 | M67: 6.3 | N67: 32.9 | O67: 0.1
A68: 312 | B68: Картофельное пюре | C68: 150 | D68: 3.1 | E68: 4.8 | F68: 20.4 | G68: 137.3 | H68: 0.1 | I68: 18.2 | K68: 0.2 | L68: 37.0 | M68: 86.6 | N68: 27.8 | O68: 1.0
A69: 349 | B69: Компот из сухофруктов | C69: 180 | D69: 1.04 | E69: 0.30 | F69: 42.50 | G69: 132.12 | H69: 0.02 | I69: 0.70 | K69: 0.18 | L69: 5.30 | M69: 41.40 | N69: 29.70 | O69: 0.80
A70: б/н | B70: Хлеб пшеничный | C70: 30 | D70: 2.25 | E70: 0.84 | F70: 15.51 | G70: 70.14 | H70: 0.3 | I70: - | J70: - | K70: 0.39 | L70: 6.9 | M70: 26.1 | N70: 9.9 | O70: 0.33
A71: б/н | B71: Хлеб ржаной | C71: 30 | D71: 1.4 | E71: 0.47 | F71: 7.8 | G71: 42 | H71: 0.04 | K71: 0.36 | L71: 9.2 | M71: 42.4 | N71: 10 | O71: 1.24
B72: Соль иодированная | C72: 1
A73: ИТОГО: | C73: =SUM(C64:C71) -> 740 | D73: =SUM(D64:D71) -> 18.57 | E73: 20.04 | F73: 115.31 | G73: 718.69 | H73: 0.636 | I73: 30.33 | J73: 16.96 | K73: 10.27 | L73: 204.78 | M73: 393.49 | N73: 192.45 | O73: 5.1
A75: День: | B75: шестой
A76: Неделя: | B76: вторая
A77: № рец. | B77: Приём пищи, наименование блюда | C77: Масса порции | D77: Пищевые вещества (г.) | G77: Энергетическая ценность (ккал) | H77: Витамины (мг.) | L77: Минеральные вещества (мг.)
D78: Б | E78: Ж | F78: У | H78: В1 | I78: С | J78: А | K78: Е | L78: Са | M78: Р | N78: Мg | O78: Fe
A79: 52 | B79: Салат из свеклы с растительным маслом | C79: 60 | D79: 0.98 | E79: 2.50 | F79: 5.40 | G79: 47.93 | H79: 0.01 | I79: 4.10 | K79: 1.10 | L79: 16.90 | M79: 24.90 | N79: 11.03 | O79: 0.80
A80: 102 | B80: Суп с бобовыми (горох) на кур. бульоне | C80: 200 | D80: 5.49 | E80: 5.27 | F80: 16.54 | G80: 148.29 | H80: 0,19 | I80: 0,64 | J80: - | K80: 14,24 | L80: 33,9 | M80: 61,1 | N80: 23,7 | O80: 1,7
A81: 294 | B81: Котлета рубленная из мяса птицы с красным соусом № 331 (50/40) | C81: 90 | D81: 9.8 | E81: 10.7 | F81: 11.34 | G81: 179.8 | H81: 0.05 | I81: 0.9 | J81: 41.31 | L81: 40.95 | M81: 14.85 | N81: 60.21 | O81: 1.08
A82: 309 | B82: Макароны отварные | C82: 150 | D82: 5.52 | E82: 4.52 | F82: 26.45 | G82: 168.45 | H82: 0.06 | K82: 0.97 | L82: 4.86 | M82: 37.17 | N82: 21.12 | O82: 1.1
A83: 349 | B83: Компот из сухофруктов | C83: 180 | D83: 1.04 | E83: 0.30 | F83: 42.50 | G83: 132.12 | H83: 0.02 | I83: 0.70 | K83: 0.18 | L83: 5.30 | M83: 41.40 | N83: 29.70 | O83: 0.80
A84: б/н | B84: Хлеб пшеничный | C84: 20 | D84: 1.58 | E84: 0.2 | F84: 9.66 | G84: 46.76 | H84: 0.02 | K84: 0.26 | L84: 4.6 | M84: 17.4 | N84: 6.6 | O84: 0.22
A85: б/н | B85: Хлеб ржаной | C85: 20 | D85: 0.9 | E85: 0.3 | F85: 5.2 | G85: 28 | H85: 0.01 | K85: 0.24 | L85: 6.1 | M85: 28.3 | N85: 6.6 | O85: 0.8
B86: Соль иодированная | C86: 1
A87: ИТОГО: | C87: =SUM(C79:C85) -> 720 | D87: =SUM(D79:D85) -> 25.31 | E87: 23.79 | F87: 117.09 | G87: 751.35 | H87: 0.17 | I87: 5.7 | J87: 41.31 | K87: 2.75 | L87: 78.71 | M87: 164.02 | N87: 135.26 | O87: 4.8
A89: День: | B89: седьмой
A90: Неделя: | B90: вторая
A91: № рец. | B91: Приём пищи, наименование блюда | C91: Масса порции | D91: Пищевые вещества (г.) | G91: Энергетическая ценность (ккал) | H91: Витамины (мг.) | L91: Минеральные вещества (мг.)
D92: Б | E92: Ж | F92: У | H92: В1 | I92: С | J92: А | K92: Е | L92: Са | M92: Р | N92: Мg | O92: Fe
A93: 42дет. | B93: Салат из моркови с раст. маслом | C93: 60 | D93: 0.70 | E93: 0.06 | F93: 6.90 | G93: 49.02 | H93: 0.03 | I93: 2.01 | J93: - | K93: 4.34 | L93: 15.50 | M93: 31.70 | N93: 21.60 | O93: 0.40
A94: 82 | B94: Борщ с картофелем и капустой на курином бульоне | C94: 200 | D94: 2.08 | E94: 4.1 | F94: 8.7 | G94: 111 | H94: 0.04 | I94: 8.5 | K94: 1.92 | L94: 41.4 | M94: 43.68 | N94: 20.9 | O94: 0.98
A95: 278.1 | B95: Тефтели из мяса птицы с соусом (50/40) | C95: 90 | D95: 14.1 | E95: 13.6 | F95: 13.2 | G95: 231.66 | H95: 0.15 | I95: 0.7 | J95: 27.2 | K95: 55.44 | L95: 48.4 | M95: 64.8 | N95: 17.9 | O95: 2.9
A96: 302 | B96: Каша рассыпчатая гречневая | C96: 150 | D96: 8.6 | E96: 6.09 | F96: 38.64 | G96: 243.8 | H96: 0.02 | K96: 0.61 | L96: 14.82 | M96: 203.93 | N96: 135.83 | O96: 4.56
A97: 342 | B97: Компот из свежих яблок | C97: 180 | D97: 0.14 | E97: 0.14 | F97: 25.10 | G97: 103.14 | H97: 0.01 | I97: 0.80 | K97: 0.07 | L97: 15.30 | M97: 4.60 | N97: 6.40 | O97: 0.90
A98: б/н | B98: Хлеб пшеничный | C98: 20 | D98: 1.58 | E98: 0.2 | F98: 9.66 | G98: 46.76 | H98: 0.02 | K98: 0.26 | L98: 4.6 | M98: 17.4 | N98: 6.6 | O98: 0.22
A99: б/н | B99: Хлеб ржаной | C99: 20 | D99: 0.9 | E99: 0.3 | F99: 5.2 | G99: 28 | H99: 0.01 | K99: 0.24 | L99: 6.1 | M99: 28.3 | N99: 6.6 | O99: 0.8
B100: Соль иодированная | C100: 1
A101: ИТОГО: | C101: =SUM(C93:C99) -> 720 | D101: =SUM(D93:D99) -> 28.1 | E101: 24.49 | F101: 107.4 | G101: =SUM(G93:G99) -> 813.38 | H101: 0.28 | I101: 12.01 | J101: 27.2 | K101: 62.88 | L101: 146.12 | M101: 394.41 | N101: 215.83 | O101: 10.76
A103: День: | B103: восьмой
A104: Неделя: | B104: вторая | M104: Ъ
A105: № рец. | B105: Приём пищи, наименование блюда | C105: Масса порции | D105: Пищевые вещества (г.) | G105: Энергетическая ценность (ккал) | H105: Витамины (мг.) | L105: Минеральные вещества (мг.)
D106: Б | E106: Ж | F106: У | H106: В1 | I106: С | J106: А | K106: Е | L106: Са | M106: Р | N106: Мg | O106: Fe
A107: 45/47 | B107: Салат из свежей капусты или квашеной | C107: 60 | D107: 0.07 | E107: 1.90 | F107: 3.90 | G107: 36.24 | H107: 0.01 | I107: 10.10 | K107: 9.24 | L107: 14.90 | M107: 16.90 | N107: 9.10 | O107: 0.30
A108: 99 | B108: Суп овощной на мясном бульоне | C108: 200 | D108: 1.27 | E108: 3.99 | F108: 7.3 | G108: 76.2 | H108: 0.06 | I108: 14.3 | K108: 1.86 | L108: 27.88 | M108: 39.42 | N108: 16.6 | O108: 0.6
A109: 259 | B109: Жаркое по-домашнему с мясом свинины | C109: 240 | D109: 16.86 | E109: 40.44 | F109: 22.68 | G109: 525.24 | H109: 0.48 | I109: 9.24 | J109: - | K109: 4.2 | L109: 39.36 | M109: 247.08 | N109: 58.75 | O109: 4.08
A110: 349 | B110: Компот из сухофруктов | C110: 200 | D110: 1.04 | E110: 0.30 | F110: 42.50 | G110: 132.12 | H110: 0.02 | I110: 0.70 | K110: 0.18 | L110: 5.30 | M110: 41.40 | N110: 29.70 | O110: 0.80
A111: б/н | B111: Хлеб пшеничный | C111: 20 | D111: 1.58 | E111: 0.2 | F111: 9.66 | G111: 46.76 | H111: 0.02 | K111: 0.26 | L111: 4.6 | M111: 17.4 | N111: 6.6 | O111: 0.22
A112: б/н | B112: Хлеб ржаной | C112: 20 | D112: 0.9 | E112: 0.3 | F112: 5.2 | G112: 28 | H112: 0.01 | K112: 0.24 | L112: 6.1 | M112: 28.3 | N112: 6.6 | O112: 0.8
B113: Соль иодированная | C113: 1
A114: ИТОГО: | C114: =SUM(C107:C112) -> 740 | D114: =SUM(D107:D112) -> 21.72 | E114: 47.13 | F114: 91.24 | G114: 844.56 | H114: 0.6 | I114: 34.34 | J114: 0 | K114: 15.98 | L114: 98.14 | M114: 390.5 | N114: 127.35 | O114: 6.8
A116: День: | B116: девятый
A117: Неделя: | B117: вторая
A118: № рец. | B118: Приём пищи, наименование блюда | C118: Масса порции | D118: Пищевые вещества (г.) | G118: Энергетическая ценность (ккал) | H118: Витамины (мг.) | L118: Минеральные вещества (мг.)
D119: Б | E119: Ж | F119: У | H119: В1 | I119: С | J119: А | K119: Е | L119: Са | M119: Р | N119: Мg | O119: Fe
A120: 67 | B120: Винегрет овощной с маслом растительным | C120: 60 | D120: 0.84 | E120: 6.02 | F120: 4.4 | G120: 75.06 | H120: 0.02 | I120: 5.8 | K120: 2.7 | L120: 18.7 | M120: 25.9 | N120: 11.7 | O120: 0.5
A121: 96 | B121: Рассольник по-Ленинградски на кур.бульоне | C121: 200 | D121: 2.3 | E121: 4.2 | F121: 9.6 | G121: 113.8 | H121: 0.07 | I121: 6.7 | K121: 1.88 | L121: 24.92 | M121: 45.38 | N121: 19.34 | O121: 0.74
A122: 291 | B122: Плов из мяса птицы | C122: 240 | D122: 20.28 | E122: 12.6 | F122: 42.84 | G122: 366.36 | H122: 0.12 | I122: 7.22 | J122: 23.28 | K122: 0.6 | L122: 50.76 | M122: 210.36 | N122: 64.85 | O122: 2.28
A123: 342 | B123: Компот из свежих яблок | C123: 180 | D123: 0.14 | E123: 0.14 | F123: 25.10 | G123: 103.14 | H123: 0.01 | I123: 0.80 | K123: 0.07 | L123: 15.30 | M123: 4.60 | N123: 6.40 | O123: 0.90
A124: б/н | B124: Хлеб пшеничный | C124: 30 | D124: 2.25 | E124: 0.84 | F124: 15.51 | G124: 70.14 | H124: 0.3 | I124: - | J124: - | K124: 0.39 | L124: 6.9 | M124: 26.1 | N124: 9.9 | O124: 0.33
A125: б/н | B125: Хлеб ржаной | C125: 30 | D125: 1.4 | E125: 0.47 | F125: 7.8 | G125: 42 | H125: 0.04 | K125: 0.36 | L125: 9.2 | M125: 42.4 | N125: 10 | O125: 1.24
B126: Соль иодированная | C126: 1
A127: ИТОГО | C127: =SUM(C120:C125) -> 740 | D127: 27.21 | E127: 24.27 | F127: 105.25 | G127: 770.5 | H127: 0.56 | I127: 20.52 | J127: 23.28 | K127: 6 | L127: 125.78 | M127: 354.74 | N127: 122.19 | O127: 5.99
A130: День: | B130: десятый
A131: Неделя | B131: вторая
A132: № рец. | B132: Приём пищи, наименование блюда | C132: Масса порции | D132: Пищевые вещества (г.) | G132: Энергетическая ценность (ккал) | H132: Витамины (мг.) | L132: Минеральные вещества (мг.)
D133: Б | E133: Ж | F133: У | H133: В1 | I133: С | J133: А | K133: Е | L133: Са | M133: Р | N133: Мg | O133: Fe
A134: 45/47 | B134: Салат из свежей капусты или квашеной | C134: 60 | D134: 0.07 | E134: 1.90 | F134: 3.90 | G134: 36.24 | H134: 0.01 | I134: 10.10 | K134: 9.24 | L134: 14.90 | M134: 16.90 | N134: 9.10 | O134: 0.30
A135: 88 | B135: Щи из свежей капусты с картофелем на курином бульоне | C135: 200 | D135: 2.1 | E135: 4.12 | F135: 6.32 | G135: 99.8 | H135: 0.05 | I135: 12.6 | K135: 1.88 | L135: 41 | M135: 39.2 | N135: 17.7 | O135: 0.7
A136: 278.1 | B136: Тефтели из мяса птицы с соусом (50/40) | C136: 90 | D136: 14.1 | E136: 13.6 | F136: 13.2 | G136: 231.66 | H136: 0.15 | I136: 0.7 | J136: 27.2 | K136: 55.44 | L136: 48.4 | M136: 64.8 | N136: 17.9 | O136: 0.70
A137: 312 | B137: Картофельное пюре | C137: 150 | D137: 3.1 | E137: 4.8 | F137: 20.4 | G137: 137.3 | H137: 0.1 | I137: 18.2 | K137: 0.2 | L137: 37.0 | M137: 86.6 | N137: 27.8 | O137: 1.0
A138: 349 | B138: Компот из сухофруктов | C138: 180 | D138: 1.04 | E138: 0.30 | F138: 42.50 | G138: 132.12 | H138: 0.02 | I138: 0.70 | K138: 0.18 | L138: 5.30 | M138: 41.40 | N138: 29.70 | O138: 0.80
A139: б/н | B139: Хлеб пшеничный | C139: 20 | D139: 1.58 | E139: 0.2 | F139: 9.66 | G139: 46.76 | H139: 0.02 | K139: 0.26 | L139: 4.6 | M139: 17.4 | N139: 6.6 | O139: 0.22
A140: б/н | B140: Хлеб ржаной | C140: 20 | D140: 0.9 | E140: 0.3 | F140: 5.2 | G140: 28 | H140: 0.01 | K140: 0.24 | L140: 6.1 | M140: 28.3 | N140: 6.6 | O140: 0.8
B141: Соль иодированная | C141: 1
A142: ИТОГО: | C142: =SUM(C134:C140) -> 720 | D142: =SUM(D134:D140) -> 22.86 | E142: 25.22 | F142: 101.22 | G142: 711.83 | H142: 0.4 | I142: 42.26 | J142: 27.2 | K142: 67.42 | L142: 157.28 | M142: 294.59 | N142: 115.35 | O142: 4.53
A148: Основные показатели в пищевых веществах и энергетической ценности
A149: ( Приложение № 10 к СанПиН 2.3/2.4.3590-20)
B151: Основные показатели дни по меню | E151: пищевые вещества (г) | K151: Энергетическая ценность (ккал)
E152: Б | G152: Ж | I152: У
B153: 1 день | E153: 29.89 | G153: 51.18 | I153: 122.14 | K153: 1056.99
B154: 2 день | E154: 25.14 | G154: 25.88 | I154: 90.73 | K154: 727.91
B155: 3 день | E155: 24.09 | G155: 21.69 | I155: 123.79 | K155: 753.92
B156: 4 день | E156: 17.92 | G156: 25.01 | I156: 101.64 | K156: 735.64
B157: 5 день | E157: 18.6 | G157: 20.0 | I157: 115.3 | K157: 718.7
B158: 6 день | E158: 25.31 | G158: 23.79 | I158: 117.09 | K158: 751.35
B159: 7 день | E159: 28.1 | G159: 24.49 | I159: 107.4 | K159: 813.38
B160: 8 день | E160: 21.72 | G160: 47.13 | I160: 91.24 | K160: 844.56
B161: 9 день | E161: 27.21 | G161: 24.27 | I161: 105.25 | K161: 770.5
B162: 10 день | E162: 22.86 | G162: 25.22 | I162: 101.22 | K162: 711.83
B163: Итого за весь период: | E163: =SUM(E153:F162) -> 240.81 | G163: =SUM(G153:H162) -> 288.7 | I163: =SUM(I153:J162) -> 1075.81 | K163: =SUM(K153:N162) -> 7884.77
B164: Итого в среднем за 1 день(прием пищи -обед) | E164: =SUM(E163/10) -> 24.081 | G164: =SUM(G163/10) -> 28.87 | I164: =SUM(I163/10) -> 107.581 | K164: =SUM(K163/10) -> 788.477
B165: Обед составляет 30% от дневной нормы | E165: 30% от нормы 77 г составляет 23,1 г | G165: 30% от дневной нормы 79 г составляет 23.7 г | I165: 30% от дневной нормы 335 г составляет 100.5 г | K165: 30% от дневной нормы 2350 ккал составляет 705 ккал
